fUST/lending_fUST_20250504
["ID","MTS","AMOUNT","RATE_DAILY","PERIOD"]
[359760548,1746306633723,-500.0,0.00018473,2]
[359760550,1746306633732,-500.0,0.00018473,2]
[359760552,1746306633742,-500.0,0.00018473,2]
[359760554,1746306633751,-500.0,0.00018473,2]
[359760556,1746306633761,-500.0,0.00018473,2]
[359760558,1746306633771,-500.0,0.00018473,2]
[359760560,1746306633780,-502.75942627,0.00018473,2]
[359760561,1746306633789,-500.0,0.00018473,2]
[359760562,1746306633798,-515.25123319,0.00018473,2]
[359760563,1746306633808,-500.0,0.0001863,2]
[359760564,1746306633817,-312.092888,0.00018732,2]
[359760565,1746306633827,-454.62,0.00018732,2]
[359760566,1746306633836,-400.0,0.00018732,2]
[359760567,1746306633846,-400.0,0.00018732,2]
[359760568,1746306633855,-400.0,0.00018732,2]
[359760569,1746306633865,-400.0,0.00018732,2]
[359760570,1746306633874,-400.0,0.00018733,2]
[359760571,1746306633883,-400.0,0.00018733,2]
[359760572,1746306633893,-400.0,0.00018733,2]
[359760573,1746306633902,-400.0,0.00018733,2]
[359760574,1746306633911,-400.0,0.00018733,2]
[359760575,1746306633920,-400.0,0.00018733,2]
[359760576,1746306633929,-400.0,0.00018735,2]
[359760577,1746306633939,-400.0,0.00018735,2]
[359760578,1746306633948,-400.0,0.00018735,2]
[359760579,1746306633957,-400.0,0.00018735,2]
[359760580,1746306633966,-400.0,0.00018735,2]
[359760581,1746306633976,-400.0,0.00018735,2]
[359760582,1746306633985,-445.16,0.00018735,2]
[359760583,1746306633994,-400.0,0.00018735,2]
[359760584,1746306634003,-400.0,0.00018736,2]
[359760585,1746306634012,-400.0,0.00018736,2]
[359760587,1746306634022,-602.05,0.00018736,2]
[359760589,1746306634031,-507.36001353,0.00018736,2]
[359760591,1746306634041,-400.0,0.00018736,2]
[359760593,1746306634050,-400.0,0.00018736,2]
[359760595,1746306634059,-500.0,0.00018815,2]
[359760597,1746306634070,-976.43995266,0.000189,2]
[359760599,1746306634079,-1812.52075915,0.00019,2]
[359760601,1746306634089,-400.0,0.00019006,2]
[359760603,1746306634098,-400.0,0.00019006,2]
[359760605,1746306634108,-400.0,0.00019006,2]
[359760607,1746306634117,-400.0,0.00019006,2]
[359760609,1746306634127,-400.0,0.00019007,2]
[359760610,1746306634137,-400.0,0.00019007,2]
[359760612,1746306634146,-400.0,0.00019007,2]
[359760614,1746306634156,-538.07,0.00019007,2]
[359760616,1746306634166,-400.0,0.00019007,2]
[359760618,1746306634176,-400.0,0.00019007,2]
[359760620,1746306634185,-400.0,0.00019009,2]
[359760622,1746306634195,-400.0,0.00019009,2]
[359760636,1746306634328,-400.0,0.00019009,2]
[359760637,1746306634338,-400.0,0.00019009,2]
[359760638,1746306634347,-400.0,0.00019009,2]
[359760639,1746306634357,-400.0,0.00019009,2]
[359760641,1746306634367,-445.16,0.00019009,2]
[359760643,1746306634376,-400.0,0.00019009,2]
[359760644,1746306634385,-400.0,0.0001901,2]
[359760646,1746306634395,-400.0,0.0001901,2]
[359760648,1746306634405,-602.05,0.0001901,2]
[359760650,1746306634414,-400.0,0.0001901,2]
[359760652,1746306634423,-474.36716167,0.0001901,2]
[359760654,1746306634432,-500.0,0.00019172,2]
[359760656,1746306634442,-500.0,0.00019173,2]
[359760658,1746306634452,-503.00725853,0.00019173,2]
[359760660,1746306634461,-500.0,0.00019173,2]
[359760662,1746306634471,-500.0,0.00019173,2]
[359760664,1746306634481,-507.46735921,0.00019173,2]
[359760666,1746306634495,-500.0,0.00019173,2]
[359760668,1746306634504,-500.0,0.00019173,2]
[359760671,1746306634520,-500.0,0.00019173,2]
[359760673,1746306634536,-500.0,0.00019173,2]
[359760675,1746306634546,-500.0,0.00019173,2]
[359760677,1746306634556,-500.52086097,0.00019173,2]
[359760679,1746306634566,-644.42912598,0.00019173,2]
[359760681,1746306634576,-500.0,0.00019173,2]
[359760683,1746306634586,-500.0,0.00019173,2]
[359760685,1746306634596,-500.0,0.00019173,2]
[359760687,1746306634606,-500.0,0.00019173,2]
[359760690,1746306634615,-500.0,0.00019173,2]
[359760691,1746306634625,-500.0,0.00019173,2]
[359760694,1746306634636,-500.82118358,0.00019173,2]
[359760696,1746306634646,-500.0,0.00019173,2]
[359760698,1746306634656,-500.0,0.00019173,2]
[359760700,1746306634666,-500.0,0.00019173,2]
[359760702,1746306634676,-500.0,0.00019173,2]
[359760704,1746306634685,-532.52051751,0.00019173,2]
[359760706,1746306634695,-501.63846269,0.00019173,2]
[359760708,1746306634705,-500.0,0.00019173,2]
[359760710,1746306634715,-500.0,0.00019173,2]
[359760711,1746306634725,-500.0,0.00019173,2]
[359760713,1746306634735,-504.36536091,0.00019173,2]
[359760715,1746306634745,-500.0,0.00019173,2]
[359760717,1746306634754,-500.0,0.00019173,2]
[359760719,1746306634764,-620.92860114,0.00019173,2]
[359760721,1746306634774,-501.18180168,0.00019173,2]
[359760723,1746306634783,-500.0,0.00019173,2]
[359760726,1746306634794,-500.0,0.00019173,2]
[359760728,1746306634804,-611.68997418,0.00019173,2]
[359760730,1746306634814,-501.70921141,0.00019173,2]
[359760731,1746306634824,-500.0,0.00019173,2]
[359760733,1746306634835,-500.0,0.00019173,2]
[359760734,1746306634845,-500.0,0.00019173,2]
[359760735,1746306634854,-500.0,0.00019173,2]
[359760736,1746306634864,-500.0,0.00019173,2]
[359760737,1746306634874,-500.0,0.00019173,2]
[359760738,1746306634883,-502.79927213,0.00019173,2]
[359760739,1746306634894,-501.60308311,0.00019173,2]
[359760740,1746306634904,-500.0,0.00019173,2]
[359760741,1746306634914,-500.0,0.00019173,2]
[359760742,1746306634924,-500.0,0.00019173,2]
[359760743,1746306634934,-500.0,0.00019173,2]
[359760744,1746306634944,-500.0,0.00019173,2]
[359760745,1746306634954,-500.0,0.00019173,2]
[359760747,1746306634964,-521.06584164,0.00019173,2]
[359760748,1746306634973,-500.0,0.00019173,2]
[359760749,1746306634982,-500.0,0.00019177,2]
[359760750,1746306634993,-500.0,0.00019178,2]
[359760751,1746306635003,-364.71860684,0.00019178,2]
[359760752,1746306635012,-500.0,0.00019178,2]
[359760753,1746306635021,-500.0,0.00019178,2]
[359760754,1746306635031,-500.0,0.00019178,2]
[359760755,1746306635041,-500.0,0.00019178,2]
[359760756,1746306635050,-202.865572,0.00019178,2]
[359760757,1746306635060,-300.0,0.00019178,2]
[359760758,1746306635070,-500.0,0.00019187,2]
[359760759,1746306635080,-500.0,0.00019187,2]
[359760760,1746306635089,-500.0,0.00019187,2]
[359760761,1746306635099,-500.0,0.00019187,2]
[359760762,1746306635109,-500.0,0.00019187,2]
[359760763,1746306635119,-500.0,0.00019187,2]
[359760764,1746306635129,-463.91601115,0.00019187,2]
[359760765,1746306635142,-370000.0,0.00019188,2]
[359760766,1746306635152,-400.0,0.0001928,2]
[359760767,1746306635162,-400.0,0.0001928,2]
[359760768,1746306635172,-400.0,0.0001928,2]
[359760769,1746306635182,-400.0,0.0001928,2]
[359760770,1746306635191,-400.0,0.00019281,2]
[359760771,1746306635201,-400.0,0.00019281,2]
[359760772,1746306635211,-400.0,0.00019281,2]
[359760773,1746306635220,-400.0,0.00019281,2]
[359760774,1746306635229,-400.0,0.00019281,2]
[359760775,1746306635239,-400.0,0.00019283,2]
[359760776,1746306635248,-400.0,0.00019283,2]
[359760777,1746306635258,-400.0,0.00019283,2]
[359760778,1746306635268,-400.0,0.00019283,2]
[359760779,1746306635278,-400.0,0.00019283,2]
[359760781,1746306635287,-400.0,0.00019283,2]
[359760782,1746306635297,-445.16,0.00019283,2]
[359760783,1746306635306,-528.84,0.00019283,2]
[359760784,1746306635316,-308.84,0.00019284,2]
[359760785,1746306635325,-400.0,0.00019284,2]
[359760786,1746306635334,-602.05,0.00019284,2]
[359760787,1746306635344,-400.0,0.00019284,2]
[359760788,1746306635353,-151.0,0.00019329,2]
[359760789,1746306635363,-151.0,0.00019329,2]
[359760790,1746306635372,-1684.271131,0.00019329,2]
[359760791,1746306635382,-1684.271131,0.00019329,2]
[359760792,1746306635391,-100000.0,0.00019329,2]
[359760793,1746306635401,-1000.0,0.00019452,2]
[359760794,1746306635411,-400.0,0.00019554,2]
[359760795,1746306635420,-400.0,0.00019554,2]
[359760796,1746306635429,-161.85,0.00019554,2]
[359760797,1746306635439,-386.9,0.00019554,2]
[359760798,1746306635449,-400.0,0.00019555,2]
[359760799,1746306635458,-400.0,0.00019555,2]
[359760800,1746306635467,-400.0,0.00019555,2]
[359760801,1746306635477,-400.0,0.00019555,2]
[359760802,1746306635486,-400.0,0.00019555,2]
[359760803,1746306635500,-400.0,0.00019557,2]
[359760804,1746306635510,-400.0,0.00019557,2]
[359760805,1746306635520,-400.0,0.00019557,2]
[359760806,1746306635532,-400.0,0.00019557,2]
[359760807,1746306635543,-400.0,0.00019557,2]
[359760808,1746306635553,-400.0,0.00019557,2]
[359760809,1746306635563,-445.16,0.00019557,2]
[359760810,1746306635575,-602.05,0.00019558,2]
[359760811,1746306635589,-400.0,0.00019558,2]
[359760812,1746306635599,-1812.52075905,0.00019624,2]
[359760813,1746306635609,-160.0,0.00019682,2]
[359760814,1746306635618,-421.66712248,0.00019682,2]
[359760815,1746306635628,-160.0,0.00019682,2]
[359760816,1746306635637,-12601.56422439,0.00019682,2]
[359760817,1746306635648,-160.0,0.00019682,2]
[359760818,1746306635658,-160.0,0.00019682,2]
[359760819,1746306635667,-841.47485993,0.00019682,2]
[359760820,1746306635677,-151.0,0.00019818,2]
[359760821,1746306635687,-420.0,0.00019821,2]
[359760822,1746306635697,-420.0,0.00019821,2]
[359760823,1746306635707,-400.0,0.00019828,2]
[359760824,1746306635717,-400.0,0.00019828,2]
[359760825,1746306635727,-400.0,0.00019829,2]
[359760826,1746306635736,-487.05,0.00019829,2]
[359760827,1746306635746,-400.0,0.00019829,2]
[359760828,1746306635755,-319.14,0.00019829,2]
[359760829,1746306635764,-400.0,0.00019829,2]
[359760830,1746306635774,-400.0,0.00019831,2]
[359760831,1746306635783,-400.0,0.00019831,2]
[359760832,1746306635793,-400.0,0.00019831,2]
[359760833,1746306635802,-368.85,0.00019831,2]
[359760834,1746306635812,-400.0,0.00019831,2]
[359760835,1746306635821,-400.0,0.00019831,2]
[359760836,1746306635831,-445.16,0.00019831,2]
[359760837,1746306635840,-602.05,0.00019832,2]
[359760838,1746306635849,-400.0,0.00019832,2]
[359760839,1746306635860,-1680.0,0.00019918,2]
[359760840,1746306635870,-2000.0,0.0002,4]
[359760841,1746306635879,-400.0,0.00020102,2]
[359760842,1746306635889,-400.0,0.00020102,2]
[359760843,1746306635899,-400.0,0.00020103,2]
[359760844,1746306635909,-400.0,0.00020103,2]
[359760845,1746306635919,-400.0,0.00020103,2]
[359760846,1746306635928,-400.0,0.00020105,2]
[359760847,1746306635938,-400.0,0.00020105,2]
[359760848,1746306635947,-400.0,0.00020105,2]
[359760849,1746306635957,-374.6,0.00020105,2]
[359760850,1746306635967,-400.0,0.00020105,2]
[359760851,1746306635976,-445.16,0.00020105,2]
[359760852,1746306635985,-602.05,0.00020106,2]
[359760853,1746306635995,-400.0,0.00020106,2]
[359760854,1746306636004,-754.15366066,0.00020274,2]
[359760855,1746306636013,-1812.52075905,0.00020348,3]
[359760856,1746306636023,-400.0,0.00020376,2]
[359760857,1746306636033,-241.18,0.00020376,2]
[359760858,1746306636042,-400.0,0.00020377,2]
[359760859,1746306636051,-400.0,0.00020377,2]
[359760860,1746306636060,-400.0,0.00020377,2]
[359760861,1746306636070,-400.0,0.00020379,2]
[359760862,1746306636079,-400.0,0.00020379,2]
[359760863,1746306636088,-400.0,0.00020379,2]
[359760864,1746306636099,-279.55,0.00020379,2]
[359760865,1746306636108,-445.16,0.00020379,2]
[359760866,1746306636120,-602.05,0.0002038,2]
[359760867,1746306636129,-400.0,0.0002038,2]
[359760868,1746306636140,-151.53751,0.00020548,2]
[359760869,1746306636149,-400.0,0.0002065,2]
[359760870,1746306636158,-241.0,0.00020651,2]
[359760871,1746306636168,-174.6,0.00020651,2]
[359760872,1746306636177,-400.0,0.00020651,2]
[359760873,1746306636187,-383.66,0.00020653,2]
[359760874,1746306636196,-400.0,0.00020653,2]
[359760875,1746306636206,-400.0,0.00020653,2]
[359760876,1746306636215,-445.16,0.00020653,2]
[359760877,1746306636224,-602.05,0.00020654,2]
[359760878,1746306636233,-400.0,0.00020654,2]
[359760879,1746306636242,-151.0,0.00020733,2]
[359760880,1746306636254,-151.0,0.00020733,2]
[359760881,1746306636263,-600.0,0.00020822,2]
[359760882,1746306636272,-400.0,0.00020924,2]
[359760883,1746306636281,-400.0,0.00020925,2]
[359760884,1746306636290,-3094.59507372,0.00020926,2]
[359760885,1746306636300,-400.0,0.00020927,2]
[359760886,1746306636310,-400.0,0.00020927,2]
[359760887,1746306636319,-445.16,0.00020927,2]
[359760888,1746306636329,-602.05,0.00020928,2]
[359760889,1746306636338,-400.0,0.00020928,2]
[359760890,1746306636347,-155.0,0.00021,2]
[359760891,1746306636357,-157.6,0.00021,2]
[359760892,1746306636366,-467.3674886,0.00021003,2]
[359760893,1746306636375,-1684.271131,0.00021007,2]
[359760894,1746306636384,-1684.271131,0.00021007,2]
[359760895,1746306636393,-1812.52075905,0.00021072,4]
[359760896,1746306636402,-151.0,0.000211,2]
[359760897,1746306636412,-576.90479885,0.000211,7]
[359760898,1746306636421,-550.0520518,0.00021133,2]
[359760899,1746306636431,-151.0,0.00021187,2]
[359760900,1746306636440,-400.0,0.00021198,2]
[359760901,1746306636449,-400.0,0.00021199,2]
[359760902,1746306636459,-1599.64,0.000212,2]
[359760903,1746306636468,-400.0,0.00021201,2]
[359760904,1746306636491,-400.0,0.00021201,2]
[359760905,1746306636501,-445.16,0.00021201,2]
[359760906,1746306636511,-602.05,0.00021202,2]
[359760907,1746306636521,-400.0,0.00021202,2]
[359760908,1746306636531,-151.0,0.00021285,2]
[359760909,1746306636541,-151.0,0.00021285,2]
[359760910,1746306636550,-179.89467565,0.00021285,2]
[359760911,1746306636560,-207.4,0.00021285,2]
[359760912,1746306636570,-1221.24007102,0.00021348,2]
[359760913,1746306636581,-14000.38938,0.0002146,2]
[359760914,1746306636591,-12500.0,0.00021461,2]
[359760915,1746306636602,-4104.28264611,0.0002147,2]
[359760919,1746306638589,-400.0,0.00018732,2]
[359760921,1746306638599,-400.0,0.00019006,2]
[359760923,1746306638609,-400.0,0.0001928,2]
[359760925,1746306638619,-289.47245543,0.00019554,2]
[359760927,1746306638629,-8395.71735389,0.0002147,2]
[359760928,1746306638639,-400.0,0.00021472,2]
[359760929,1746306638649,-400.0,0.00021473,2]
[359760930,1746306638659,-400.0,0.00021475,2]
[359760931,1746306638669,-400.0,0.00021475,2]
[359760932,1746306638679,-445.16,0.00021475,2]
[359760933,1746306638689,-602.05,0.00021476,2]
[359760934,1746306638698,-400.0,0.00021476,2]
[359760935,1746306638708,-12500.0,0.00021479,2]
[359760936,1746306638718,-12500.0,0.00021488,2]
[359760937,1746306638728,-151.0,0.00021488,2]
[359760938,1746306638737,-151.0,0.00021488,2]
[359760939,1746306638747,-1684.271131,0.00021488,2]
[359760940,1746306638756,-1684.271131,0.00021488,2]
[359760941,1746306638766,-12500.0,0.00021496,2]
[359760942,1746306638775,-12500.0,0.00021505,2]
[359760943,1746306638785,-7769.30500053,0.00021514,2]
[359760944,1746306638797,-2992.2087682,0.00021514,2]
[359760997,1746306641002,-1485.00000009,0.00021514,2]
[359761459,1746306645520,-253.48623118,0.00021514,2]
[359761461,1746306645530,-4551.93225198,0.00021514,2]
[359761463,1746306645542,-400.0,0.00021746,2]
[359761465,1746306645552,-400.0,0.00021747,2]
[359761467,1746306645562,-400.0,0.00021749,2]
[359761469,1746306645573,-538.85,0.00021749,2]
[359761472,1746306645583,-445.16,0.00021749,2]
[359761474,1746306645592,-602.05,0.0002175,2]
[359761477,1746306645602,-400.0,0.0002175,2]
[359761480,1746306645612,-1812.52075905,0.00021797,6]
[359761482,1746306645621,-160.0,0.00021917,2]
[359761484,1746306645630,-500.0,0.00021917,2]
[359761487,1746306645639,-500.0,0.00021917,2]
[359761490,1746306645648,-151.0,0.00021918,2]
[359761493,1746306645658,-151.0,0.00021918,2]
[359761495,1746306645667,-151.0,0.00021918,2]
[359761498,1746306645677,-151.0,0.00022,7]
[359761501,1746306645686,-151.0,0.00022,2]
[359761504,1746306645695,-151.0,0.00022,2]
[359761507,1746306645704,-2000.0,0.00022,4]
[359761509,1746306645714,-559.929046,0.00022015,15]
[359761511,1746306645723,-400.0,0.0002202,2]
[359761513,1746306645732,-400.0,0.00022021,2]
[359761514,1746306645741,-400.0,0.00022023,2]
[359761516,1746306645751,-445.16,0.00022023,2]
[359761519,1746306645760,-602.05,0.00022024,2]
[359761521,1746306645770,-400.0,0.00022024,2]
[359761522,1746306645779,-1684.271131,0.00022026,2]
[359761524,1746306645788,-1684.271131,0.00022026,2]
[359761526,1746306645798,-465.11837443,0.00022053,2]
[359761528,1746306645808,-400.0,0.00022294,2]
[359761529,1746306645817,-400.0,0.00022295,2]
[359761530,1746306645826,-400.0,0.00022297,2]
[359761531,1746306645835,-445.16,0.00022297,2]
[359761532,1746306645844,-602.05,0.00022298,2]
[359761533,1746306645853,-400.0,0.00022298,2]
[359761534,1746306645863,-900.0,0.00022466,2]
[359761535,1746306645872,-1812.52075905,0.00022521,7]
[359761536,1746306645881,-151.0,0.00022556,2]
[359761537,1746306645891,-400.0,0.00022568,2]
[359761538,1746306645900,-238.4,0.00022569,2]
[359761539,1746306645909,-260.26,0.00022571,2]
[359761540,1746306645918,-445.16,0.00022571,2]
[359761541,1746306645928,-602.05,0.00022572,2]
[359761542,1746306645938,-400.0,0.00022572,2]
[359761543,1746306645947,-202.865572,0.00022603,2]
[359761544,1746306645956,-151.0,0.00022654,2]
[359761545,1746306645966,-215.0738,0.00022654,2]
[359761546,1746306645975,-635.0,0.000227,2]
[359761547,1746306645984,-151.0,0.000228,6]
[359761548,1746306645996,-264.02,0.00022842,2]
[359761549,1746306646005,-445.16,0.00022845,2]
[359761551,1746306646014,-7605.47956515,0.00022846,3]
[359761553,1746306646024,-602.05,0.00022846,2]
[359761555,1746306646034,-528.53431394,0.00022846,2]
[359761557,1746306646043,-250.0,0.00022922,2]
[359761559,1746306646052,-151.0,0.00023,7]
[359761561,1746306646061,-445.16,0.00023119,2]
[359761563,1746306646071,-602.05,0.0002312,2]
[359761565,1746306646081,-293.13,0.00023136,2]
[359761567,1746306646090,-150.595,0.00023136,2]
[359761569,1746306646099,-465.00591872,0.00023156,2]
[359761571,1746306646109,-204.203,0.0002324,2]
[359761573,1746306646118,-250.0,0.0002324,2]
[359761576,1746306646127,-249.539,0.0002324,2]
[359761579,1746306646136,-256.71,0.0002324,2]
[359761581,1746306646146,-218.335,0.0002324,2]
[359761583,1746306646155,-563.809,0.0002324,2]
[359761585,1746306646164,-2248.0,0.0002324,2]
[359761587,1746306646173,-712.059,0.0002324,2]
[359761589,1746306646182,-1812.52075905,0.00023245,8]
[359761591,1746306646192,-160.0,0.00023287,2]
[359761593,1746306646201,-445.16,0.00023393,2]
[359761595,1746306646211,-602.05,0.00023394,2]
[359761597,1746306646220,-151.0,0.000234,9]
[359761599,1746306646229,-151.0,0.000236,7]
[359761601,1746306646239,-151.0,0.000236,8]
[359761603,1746306646248,-445.16,0.00023667,2]
[359761605,1746306646257,-602.05,0.00023668,2]
[359761607,1746306646266,-976.43995266,0.000239,2]
[359761609,1746306646275,-151.0,0.00023925,2]
[359761611,1746306646284,-445.16,0.00023941,2]
[359761613,1746306646293,-602.05,0.00023942,2]
[359761615,1746306646302,-1684.271131,0.00023951,2]
[359761617,1746306646311,-1684.271131,0.00023951,2]
[359761619,1746306646321,-151.0,0.00023952,7]
[359761621,1746306646331,-151.0,0.00023952,2]
[359761623,1746306646341,-151.0,0.00023952,2]
[359761625,1746306646352,-1000.0,0.00023952,2]
[359761627,1746306646361,-1000.0,0.00023952,2]
[359761629,1746306646370,-1000.0,0.00023952,2]
[359761631,1746306646379,-276.51039253,0.00023952,2]
[359761633,1746306646390,-1000.0,0.00023952,2]
[359761635,1746306646399,-1000.0,0.00023952,2]
[359761637,1746306646408,-1000.0,0.00023952,2]
[359761639,1746306646417,-1000.0,0.00023952,2]
[359761641,1746306646426,-1000.0,0.00023952,2]
[359761643,1746306646435,-1000.0,0.00023952,2]
[359761645,1746306646445,-1000.0,0.00023952,2]
[359761647,1746306646454,-1000.0,0.00023952,2]
[359761649,1746306646464,-1812.52075905,0.00023969,10]
[359761652,1746306646473,-500.0,0.00023973,2]
[359761653,1746306646482,-2000.0,0.00024,4]
[359761655,1746306646495,-151.0,0.00024023,2]
[359761657,1746306646504,-207.4,0.00024023,2]
[359761659,1746306646513,-151.0,0.000241,9]
[359761661,1746306646522,-151.0,0.000241,6]
[359761664,1746306646531,-151.0,0.000241,10]
[359761666,1746306646542,-11885.80086237,0.00024109,2]
[359761684,1746306646706,-279.208,0.00023005,15]
[359761686,1746306646716,-3438.68690876,0.00024109,2]
[359761688,1746306646728,-6139.18897739,0.00024109,2]
[359761703,1746306646869,-43754.49793989,0.00024109,2]
[359761704,1746306646878,-155.761225,0.00024109,7]
[359761705,1746306646887,-151.0,0.00024109,7]
[359761706,1746306646897,-725.62,0.00024109,2]
[359761708,1746306646906,-725.62,0.00024109,2]
[359761709,1746306646916,-725.62,0.00024109,2]
[359761710,1746306646925,-725.62,0.00024109,2]
[359761711,1746306646935,-725.62,0.00024109,2]
[359761712,1746306646944,-725.62,0.00024109,2]
[359761713,1746306646953,-725.62,0.00024109,2]
[359761714,1746306646962,-725.62,0.00024109,2]
[359761715,1746306646971,-725.62,0.00024109,2]
[359761716,1746306646980,-725.62,0.00024109,2]
[359761717,1746306646989,-725.62,0.00024109,2]
[359761718,1746306646999,-725.62,0.00024109,2]
[359761719,1746306647008,-725.62,0.00024109,2]
[359761720,1746306647018,-725.62,0.00024109,2]
[359761721,1746306647028,-725.62,0.00024109,2]
[359761722,1746306647037,-725.62,0.00024109,2]
[359761723,1746306647046,-725.62,0.00024109,2]
[359761724,1746306647056,-725.62,0.00024109,2]
[359761725,1746306647065,-725.62,0.00024109,2]
[359761726,1746306647075,-725.62,0.00024109,2]
[359761727,1746306647085,-725.62,0.00024109,2]
[359761728,1746306647094,-1200.0,0.0002411,2]
[359761729,1746306647104,-1033.82366461,0.00024181,2]
[359761730,1746306647113,-725.62,0.00024215,2]
[359761731,1746306647123,-445.16,0.00024215,2]
[359761732,1746306647132,-602.05,0.00024216,2]
[359761733,1746306647141,-1221.24007102,0.00024336,2]
[359761734,1746306647151,-33894.47360926,0.00024404,2]
[359761735,1746306647162,-725.62,0.00024489,2]
[359761736,1746306647172,-445.16,0.00024489,2]
[359761737,1746306647181,-602.05,0.0002449,2]
[359761738,1746306647190,-1000.0,0.00024521,2]
[359761740,1746306647199,-841.47485993,0.000246,3]
[359761741,1746306647209,-160.0,0.000246,3]
[359761743,1746306647218,-160.0,0.000246,3]
[359761745,1746306647227,-421.66712248,0.000246,3]
[359761747,1746306647237,-182.16284668,0.000246,3]
[359761748,1746306647247,-1684.271131,0.000246,2]
[359761750,1746306647256,-1684.271131,0.000246,2]
[359761751,1746306647265,-160.0,0.000246,3]
[359761752,1746306647273,-160.0,0.000246,3]
[359761753,1746306647283,-12601.56422439,0.000246,3]
[359761754,1746306647293,-171.26004058,0.0002465,2]
[359761755,1746306647302,-203800.15055908,0.00024651,2]
[359761756,1746306647312,-14606.73556162,0.00024651,2]
[359761757,1746306647321,-413.95821272,0.00024651,2]
[359761758,1746306647330,-155.615552,0.00024651,7]
[359761759,1746306647340,-151.0,0.00024651,7]
[359761760,1746306647350,-151.0,0.00024651,2]
[359761761,1746306647359,-151.0,0.00024651,2]
[359761762,1746306647368,-1684.271131,0.00024651,2]
[359761763,1746306647377,-1684.271131,0.00024651,2]
[359761764,1746306647386,-1000.0,0.00024652,2]
[359761765,1746306647395,-1000.0,0.00024652,2]
[359761766,1746306647404,-1000.0,0.00024652,2]
[359761767,1746306647414,-196.16814937,0.00024652,2]
[359761768,1746306647423,-701.55683969,0.00024652,2]
[359761769,1746306647432,-1000.0,0.00024652,2]
[359761770,1746306647442,-161.30616286,0.00024652,2]
[359761771,1746306647451,-1000.0,0.00024652,2]
[359761772,1746306647461,-1000.0,0.00024652,2]
[359761773,1746306647471,-505.44058734,0.00024652,2]
[359761774,1746306647480,-541.37227278,0.00024652,2]
[359761775,1746306647489,-1000.0,0.00024652,2]
[359761776,1746306647501,-504.40928473,0.00024652,2]
[359761777,1746306647510,-1000.0,0.00024652,2]
[359761778,1746306647520,-1000.0,0.00024652,2]
[359761779,1746306647530,-407.41112909,0.00024652,2]
[359761780,1746306647541,-525.97118348,0.00024652,2]
[359761781,1746306647550,-503.0343708,0.00024652,2]
[359761782,1746306647559,-921.87288032,0.00024652,2]
[359761783,1746306647569,-1000.0,0.00024652,2]
[359761784,1746306647579,-1045.85619799,0.00024652,2]
[359761785,1746306647589,-1000.0,0.00024652,2]
[359761786,1746306647599,-1000.0,0.00024652,2]
[359761787,1746306647608,-1005.23910651,0.00024652,2]
[359761788,1746306647617,-1003.70540492,0.00024652,2]
[359761789,1746306647626,-1000.0,0.00024652,2]
[359761790,1746306647635,-160.0,0.00024657,2]
[359761791,1746306647645,-150.0,0.00024658,2]